bitfinex-derivatives/quotes_ETHF0:USTF0_20250321
["timestamp","ask_amount","ask_price","bid_price","bid_amount"]
[1742553020781,1.01959,1962.5,1962.4,4.22741]
[1742553021179,1.01959,1962.5,1962.4,5.53591]
[1742553022181,2.42739,1962.6,1962.5,1.01959]
[1742553022381,2.42739,1962.6,1962.5,2.32809]
[1742553022782,2.42739,1962.6,1962.5,3.63649]
[1742553023078,2.42739,1962.6,1962.5,2.32809]
[1742553024481,1.4078,1962.6,1962.5,2.32809]
[1742553024884,2.42734,1962.6,1962.5,2.32809]
[1742553025080,1.4078,1962.6,1962.5,2.32809]
[1742553025383,1.0195,1962.7,1962.6,1.01954]
[1742553025579,2.4356,1962.7,1962.6,5.52234]
[1742553025783,1.01948,1962.8,1962.7,1.01949]
[1742553025985,2.43558,1962.8,1962.7,2.31449]
[1742553027179,1.01949,1962.7,1962.6,1.0195]
[1742553027379,1.01954,1962.6,1962.5,2.33595]
[1742553027586,1.66824,1962.6,1962.5,2.33595]
[1742553027788,2.96604,1962.6,1962.5,2.33595]
[1742553027987,2.96604,1962.6,1962.5,1.3164]
[1742553028378,2.96604,1962.6,1962.5,2.33599]
[1742553028986,2.96604,1962.6,1962.5,1.3164]
[1742553030481,1.01959,1962.5,1962.4,3.2078]
[1742553030691,2.41909,1962.5,1962.4,3.2078]
[1742553031984,2.41909,1962.5,1962.4,4.22744]
[1742553032176,2.41909,1962.5,1962.4,5.53634]
[1742553033591,2.41909,1962.5,1962.4,3.2078]
[1742553034888,3.52236767,1962.5,1962.4,3.2078]
[1742553036388,9.24708369,1962.5,1961.6,0.38637985]
[1742553036590,1.02001,1961.7,1961.6,0.38637985]
[1742553036790,1.01986,1962.0,1961.8,1.01996]
[1742553036985,1.01986,1962.0,1961.9,2.4282]
[1742553037186,1.3234,1962.1,1962.0,1.01985]
[1742553037390,1.01978,1962.2,1962.1,1.01975]
[1742553037684,1.02742,1962.2,1962.1,5.63585]
[1742553038086,1.02742,1962.2,1962.1,2.42805]
[1742553038285,1.02742,1962.2,1962.1,1.4083]
[1742553039294,1.01985,1962.0,1961.9,3.21544]
[1742553039495,1.01985,1962.0,1961.9,4.63054]
[1742553039687,1.01985,1962.0,1961.9,0.00764]
[1742553039884,1.71195,1962.0,1961.9,0.00764]
[1742553040083,3.08095,1962.0,1961.9,0.00764]
[1742553040489,6.45995,1962.0,1961.9,0.00764]
[1742553040688,1.02011,1961.5,1961.4,5.61704]
[1742553041994,2.38911,1961.5,1961.4,4.5969]
[1742553042392,2.38911,1961.5,1961.4,6.90886]
[1742553043293,2.38911,1961.5,1961.4,5.8887]
[1742553043500,2.38911,1961.5,1961.4,6.90886]
[1742553043697,1.02016,1961.4,1961.3,0.00764]
[1742553043901,2.35706,1961.4,1961.3,0.00764]
[1742553044097,5.73606,1961.4,1961.3,0.00764]
[1742553046299,9.8168,1961.4,1961.0,3.2078]
[1742553046605,1.02042,1960.9,1960.8,5.55788]
[1742553046802,4.40041,1961.0,1960.9,1.02036]
[1742553047000,3.2078,1961.5,1961.2,1.02027]
[1742553047001,3.38,1961.5,1961.2,1.02027]
[1742553047197,2.41407,1961.5,1961.4,1.02012]
[1742553047598,2.41407,1961.5,1961.4,3.00852]
[1742553047599,1.02017,1961.5,1961.4,3.00852]
[1742553047903,2.42164,1961.6,1961.5,1.02011]
[1742553048103,2.42164,1961.6,1961.5,2.34971]
[1742553049804,1.02016,1961.4,1961.3,3.21544]
[1742553050108,1.02016,1961.4,1961.3,4.60744]
[1742553050494,3.63766,1961.4,1961.3,4.60744]
[1742553050900,3.63766,1961.4,1961.3,5.62766]
[1742553051403,3.38,1961.5,1961.3,4.60744]
[1742553051601,1.02015,1961.5,1961.4,2.42786]
[1742553052199,2.40774,1961.6,1961.5,1.02011]
[1742553052406,2.40774,1961.6,1961.5,3.75691]
[1742553053201,1.38764,1961.6,1961.5,3.75691]
[1742553053398,2.4077,1961.6,1961.5,3.75691]
[1742553057313,2.4077,1961.6,1961.5,2.42781]
[1742553057607,0.00764,1961.6,1961.5,5.80781]
[1742553057796,1.01997,1961.9,1961.8,1.0199]
[1742553058000,1.01997,1961.9,1961.8,1.705]
[1742553058211,1.01997,1961.9,1961.8,3.004]
[1742553058814,1.01997,1961.9,1961.8,1.299]
[1742553059311,1.71387,1961.9,1961.8,1.299]
[1742553059610,1.01996,1961.8,1961.7,3.38]
[1742553059813,3.06746,1961.8,1961.7,4.679]
[1742553060009,3.06746,1961.8,1961.7,1.299]
[1742553060407,3.06746,1961.8,1961.7,2.31901]
[1742553060710,3.06746,1961.8,1961.7,1.299]
[1742553060910,1.02016,1961.5,1961.4,1.02012]
[1742553061303,1.02016,1961.4,1961.3,4.94292]
[1742553061505,1.02016,1961.4,1961.3,3.21544]
[1742553062107,1.69896,1961.4,1961.3,3.21544]
[1742553062406,1.02032,1961.1,1961.0,1.3445]
[1742553062602,1.02032,1961.1,1961.0,2.36487]
[1742553062806,1.02032,1961.1,1961.0,1.3445]
[1742553063204,1.02042,1960.9,1960.8,1.02044]
[1742553063416,1.02042,1960.9,1960.8,5.58038]
[1742553063617,1.02042,1960.9,1960.8,2.37258]
[1742553063911,1.02042,1960.9,1960.8,1.35214]
[1742553064517,1.70252,1960.9,1960.8,1.35214]
[1742553066011,1.70252,1960.9,1960.8,0.00764]
[1742553066515,5.08352,1960.9,1960.8,0.00764]
[1742553067407,7.2709,1960.9,1960.3,4.22851]
[1742553067718,7.2709,1960.9,1960.3,5.58581]
[1742553067719,1.02068,1960.4,1960.3,5.58581]
[1742553069021,1.02068,1960.4,1960.3,4.5651]
[1742553069415,1.02068,1960.4,1960.3,5.58584]
[1742553069612,1.02068,1960.4,1960.3,4.5651]
[1742553070313,1.02068,1960.4,1960.3,1.3573]
[1742553070515,1.02074,1960.3,1960.2,0.00764]
[1742553070809,5.94027,1960.5,1960.2,2.41023]
[1742553071014,1.02073,1960.4,1960.3,4.22848]
[1742553071308,0.00764,1960.5,1960.4,1.02068]
[1742553071513,1.02827,1960.5,1960.4,2.40248]
[1742553072817,1.02827,1960.5,1960.4,1.3818]
[1742553073114,1.02074,1960.3,1960.2,1.37684]
[1742553073709,2.30864,1960.3,1960.2,5.60543]
[1742553073908,2.30864,1960.3,1960.2,2.39763]
[1742553074123,2.30864,1960.3,1960.2,1.37684]
[1742553074517,2.30864,1960.3,1960.2,2.39763]
[1742553074819,2.30864,1960.3,1960.2,5.60543]
[1742553075014,1.02073,1960.4,1960.3,1.02068]
[1742553075215,1.02073,1960.4,1960.3,2.38988]
[1742553076119,1.02074,1960.3,1960.2,0.00764]
[1742553076320,2.38304,1960.3,1960.2,0.00764]
[1742553076917,2.38304,1960.3,1960.2,1.32784]
[1742553077320,2.38304,1960.3,1960.2,0.00764]
[1742553080324,2.38304,1960.3,1960.2,1.02843]
[1742553080525,2.38304,1960.3,1960.2,4.23623]
[1742553080920,2.38304,1960.3,1960.2,4.64304]
[1742553081125,2.38304,1960.3,1960.2,0.00764]
[1742553081921,2.38304,1960.3,1960.2,1.02843]
[1742553082119,2.38304,1960.3,1960.2,1.40384]
[1742553083119,2.38304,1960.3,1960.2,0.00764]
[1742553084225,1.02089,1960.0,1959.9,3.9183]
[1742553084426,1.02089,1960.0,1959.9,5.62495]
[1742553085125,1.68069,1960.0,1959.9,3.2078]
[1742553086530,1.68069,1960.0,1959.9,4.22875]
[1742553086829,1.68069,1960.0,1959.9,4.5074]
[1742553088627,1.68069,1960.0,1959.9,5.52835]
[1742553088925,1.68069,1960.0,1959.9,4.5074]
[1742553089127,5.06269,1960.0,1959.9,4.5074]
[1742553089736,1.4219,1960.1,1960.0,1.02089]
[1742553089737,2.44277,1960.1,1960.0,1.02089]
[1742553089930,2.44277,1960.1,1960.0,3.14029]
[1742553090234,2.44277,1960.1,1960.0,1.4264]
[1742553091224,2.44277,1960.1,1960.0,2.44729]
[1742553091427,2.44277,1960.1,1960.0,1.4264]
[1742553091835,2.44277,1960.1,1960.0,2.44729]
[1742553092040,2.44277,1960.1,1960.0,1.4264]
[1742553092538,2.44277,1960.1,1960.0,2.44729]
[1742553093134,2.44277,1960.1,1960.0,1.4264]
[1742553093325,1.02089,1960.0,1959.9,3.2078]
[1742553093529,3.12069,1960.0,1959.9,3.2078]
[1742553094032,3.12069,1960.0,1959.9,4.5161]
[1742553095125,3.12069,1960.0,1959.8,0.00764]
[1742553095126,1.02095,1959.9,1959.8,0.00764]
[1742553095326,3.09005,1959.9,1959.8,0.00764]
[1742553095938,1.0211,1959.6,1959.5,1.3083]
[1742553096135,1.0211,1959.6,1959.5,4.5161]
[1742553096341,2.411,1959.6,1959.5,2.32945]
[1742553096631,1.02121,1959.4,1959.3,1.02124]
[1742553096837,1.02121,1959.4,1959.3,2.35644]
[1742553097030,2.41109,1959.5,1959.4,1.02121]
[1742553097236,2.41109,1959.5,1959.4,4.22901]
[1742553097939,2.41109,1959.5,1959.4,5.64011]
[1742553098329,2.41109,1959.5,1959.4,4.6189]
[1742553098731,2.41109,1959.5,1959.4,5.64011]
[1742553099441,2.41109,1959.5,1959.4,4.6189]
[1742553099742,2.41109,1959.5,1959.4,5.64011]
[1742553099935,2.41109,1959.5,1959.4,4.6189]
[1742553100330,2.32884,1959.6,1959.4,4.6189]
[1742553100535,2.32884,1959.6,1959.5,2.35835]
[1742553100536,1.02114,1959.6,1959.5,2.35835]
[1742553104842,6.58635,1959.8,1959.5,3.89001]
[1742553104843,0.6508,1959.8,1959.5,3.89001]
[1742553105035,2.41395,1959.8,1959.7,1.021]
[1742553105537,2.41395,1959.8,1959.7,2.3977]
[1742553105742,2.41395,1959.8,1959.7,1.3767]
[1742553107148,1.02105,1959.7,1959.6,3.2078]
[1742553107445,1.0211,1959.6,1959.5,1.3118]
[1742553107947,4.7803,1959.6,1959.4,3.2078]
[1742553108139,1.02126,1959.3,1959.2,4.89380336]
[1742553108345,1.02126,1959.3,1959.2,3.87249336]
[1742553108545,1.02126,1959.3,1959.2,3.21289336]
[1742553109048,1.02126,1959.3,1959.2,0.00509336]
[1742553109350,1.02136,1959.1,1959.0,3.2078]
[1742553109937,3.73066,1959.1,1959.0,3.2078]
[1742553111143,3.73066,1959.1,1959.0,4.5663]
[1742553111539,3.73066,1959.1,1959.0,3.2078]
[1742553111944,3.73066,1959.1,1958.8,1.3585]
[1742553111945,1.02147,1958.9,1958.8,1.3585]
[1742553112446,2.37177,1958.9,1958.8,1.3585]
[1742553112641,1.02152,1958.8,1958.7,4.22935]
[1742553112847,2.37182,1958.8,1958.7,5.56575]
[1742553113051,2.37182,1958.8,1958.7,2.35795]
[1742553113652,1.02162,1958.7,1958.6,1.02158]
[1742553113849,2.37192,1958.7,1958.6,2.35798]
[1742553114352,1.3503,1958.7,1958.6,3.00848]
[1742553114553,2.37187,1958.7,1958.6,3.00848]
[1742553114958,2.37187,1958.7,1958.3,0.6647]
[1742553114959,1.02173,1958.4,1958.3,0.6647]
[1742553115254,1.02172,1958.5,1958.4,1.02169]
[1742553115747,3.2078,1958.8,1958.5,2.55419]
[1742553115950,1.0215,1958.9,1958.8,1.02147]
[1742553116343,2.3529,1958.9,1958.8,1.02147]
[1742553116551,1.3314,1958.9,1958.8,1.02147]
[1742553116750,1.69625,1959.0,1958.7,1.3884]
[1742553116751,3.02765,1959.0,1958.9,1.02147]
[1742553117945,1.02147,1958.9,1958.8,2.40988]
[1742553118151,2.40557,1958.9,1958.8,2.40988]
[1742553120458,2.40557,1958.9,1958.8,2.40992]
[1742553121754,1.02147,1958.9,1958.8,2.40992]
[1742553122353,1.02146,1959.0,1958.9,1.02141]
[1742553122554,3.9044,1959.1,1959.0,1.02141]
[1742553122555,5.62989,1959.1,1959.0,1.02141]
[1742553122760,1.02134,1959.2,1959.1,1.02136]
[1742553122963,1.02131,1959.3,1959.2,1.02131]
[1742553124163,1.40834,1959.4,1959.3,1.02126]
[1742553124164,1.02885,1959.4,1959.3,1.02126]
[1742553124360,0.00764,1959.4,1959.3,2.34146]
[1742553124554,0.00764,1959.4,1959.3,5.72546]
[1742553125462,1.02885,1959.4,1959.3,5.72546]
[1742553125864,1.02885,1959.4,1959.3,2.34146]
[1742553126064,0.00764,1959.4,1959.3,2.34146]
[1742553126374,1.323,1959.7,1959.6,1.0211]
[1742553126557,1.0211,1959.7,1959.6,1.0211]
[1742553127364,2.36172,1959.8,1959.7,1.02105]
[1742553127662,2.3693799,1959.8,1959.7,1.02105]
[1742553128056,2.3693799,1959.8,1959.7,2.32435]
[1742553128057,1.0286599,1959.8,1959.7,2.32435]
[1742553129363,1.0286599,1959.8,1959.7,3.03785]
[1742553129565,0.0076599,1959.8,1959.7,3.03785]
[1742553129861,1.0286599,1959.8,1959.7,3.03785]
[1742553132661,1.0286599,1959.8,1959.7,2.0168]
[1742553132867,1.0286599,1959.8,1959.7,6.42085]
[1742553133166,1.0286599,1959.8,1959.7,1.3033]
[1742553133755,1.0211,1959.6,1959.5,0.6598599]
[1742553134064,1.0211,1959.6,1959.5,1.6810099]
[1742553134466,1.0211,1959.6,1959.5,0.0076599]
[1742553134770,1.6925,1959.6,1959.5,0.0076599]
[1742553134965,1.02121,1959.4,1959.3,1.3997]
[1742553135270,1.02121,1959.4,1959.3,2.42096]
[1742553135467,1.02121,1959.4,1959.3,1.3997]
[1742553135970,2.39089,1959.5,1959.4,1.02121]
[1742553136161,2.39089,1959.5,1959.4,1.69311]
[1742553136362,5.60544,1959.6,1959.5,1.02115]
[1742553136662,1.02108,1959.7,1959.6,1.0211]
[1742553137164,0.0076599,1959.8,1959.7,1.02105]
[1742553137360,0.0076599,1959.8,1959.7,2.38765]
[1742553137562,1.0286599,1959.8,1959.7,5.77065]
[1742553137764,1.0286599,1959.8,1959.7,1.3666]
[1742553137961,1.0286599,1959.8,1959.7,2.38765]
[1742553138169,1.0286599,1959.8,1959.7,1.3666]
[1742553138371,2.3450599,1959.8,1959.7,1.3666]
[1742553138672,2.3450599,1959.8,1959.7,2.38765]
[1742553139963,0.0076599,1959.8,1959.7,2.38765]
[1742553140271,0.0076599,1959.8,1959.7,3.07765]
[1742553141265,0.0076599,1959.8,1959.7,6.46065]
[1742553142568,6.5908,1960.4,1959.7,7.9396]
[1742553142772,1.3426,1960.3,1960.2,1.02079]
[1742553142969,1.02062,1960.6,1960.5,1.02063]
[1742553143164,2.36322,1960.6,1960.5,1.02063]
[1742553143364,1.02063,1960.5,1960.4,2.37054]
[1742553143677,2.36323,1960.5,1960.4,1.3499]
[1742553144178,2.36327,1960.5,1960.4,1.02068]
[1742553144476,1.3426,1960.5,1960.4,2.37058]
[1742553144973,2.36323,1960.5,1960.4,2.37058]
[1742553145165,1.3426,1960.5,1960.4,2.37058]
[1742553146067,0.0076599,1960.6,1960.5,1.02063]
[1742553146267,0.0076599,1960.6,1960.5,4.22843]
[1742553146467,0.0076599,1960.6,1960.5,8.31313]
[1742553147667,0.0076599,1960.6,1960.5,5.10533]
[1742553147867,1.3255599,1960.6,1960.5,5.10533]
[1742553148674,1.3255599,1960.6,1960.5,3.383]
[1742553148675,2.3461399,1960.6,1960.5,3.383]
[1742553148889,1.3255599,1960.6,1960.4,1.02067]
[1742553149077,2.35928,1960.5,1960.4,1.02067]
[1742553149271,2.35928,1960.5,1960.4,2.31607]
[1742553149576,1.02068,1960.4,1960.3,1.0283599]
[1742553149875,3.01558,1960.4,1960.3,1.0283599]
[1742553150264,1.9949,1960.4,1960.3,1.0283599]
[1742553150468,1.9949,1960.4,1960.3,2.3237599]
[1742553150669,3.01558,1960.4,1960.3,2.3237599]
[1742553150877,1.9949,1960.4,1960.3,2.3237599]
[1742553151069,3.01558,1960.4,1960.3,0.0076599]
[1742553151668,3.01558,1960.4,1960.3,1.0283999]
[1742553151873,1.9949,1960.4,1960.3,1.0283999]
[1742553152175,1.9949,1960.4,1960.3,4.2361999]
[1742553152372,1.9949,1960.4,1960.3,1.0283999]
[1742553152567,1.9949,1960.4,1960.3,2.4244999]
[1742553152968,1.9949,1960.4,1960.3,5.6322999]
[1742553153177,3.3896599,1960.6,1960.5,1.02063]
[1742553153476,2.4455399,1960.6,1960.5,1.02063]
[1742553154177,1.02063,1960.5,1960.4,2.41674]
[1742553154369,2.43793,1960.5,1960.4,2.41674]
[1742553155673,2.43793,1960.5,1960.4,1.02064]
[1742553156577,1.02079,1960.2,1960.1,1.02081]
[1742553156773,1.02095,1959.9,1959.8,1.4176]
[1742553156973,2.55206,1960.2,1959.7,4.40299]
[1742553156974,1.021,1959.8,1959.7,4.40299]
[1742553157175,2.4099,1959.8,1959.7,1.4176]
[1742553157375,1.02105,1959.7,1959.6,4.22888]
[1742553157570,3.05735,1959.7,1959.6,3.2078]
[1742553157776,2.0363,1959.7,1959.1,1.7673751]
[1742553157973,1.02131,1959.3,1959.2,1.02127]
[1742553158477,1.02131,1959.2,1959.1,1.3161]
[1742553158777,1.02136,1959.1,1959.0,3.2078]
[1742553159277,1.02136,1959.1,1959.0,4.2292]
[1742553159579,2.55354,1959.0,1958.6,1.02158]
[1742553159779,1.02167,1958.5,1958.4,4.2295]
[1742553159973,1.02167,1958.5,1958.4,5.5456]
[1742553160173,1.02167,1958.5,1958.4,1.3161]
[1742553160372,1.02173,1958.4,1958.3,3.2078]
[1742553160576,2.55446,1958.3,1957.6,15.20602218]
[1742553160777,3.2078,1958.0,1957.9,1.02199]
[1742553161080,0.0076599,1958.1,1957.8,2.5551]
[1742553161283,1.0295899,1958.1,1958.0,1.02194]
[1742553161480,1.3266599,1958.1,1958.0,1.02194]
[1742553161680,0.6574,1958.4,1958.3,1.02178]
[1742553161681,4.22953,1958.4,1958.3,1.02178]
[1742553161882,4.22957,1958.4,1958.3,1.02178]
[1742553162181,1.02183,1958.2,1958.1,2.31288]
[1742553162583,1.02181,1958.3,1958.1,2.31286]
[1742553162778,2.34083,1958.2,1958.1,2.31286]
[1742553163080,1.0294899,1958.3,1958.2,1.02183]
[1742553163281,0.0076599,1958.3,1958.2,2.31283]
[1742553163673,1.3656599,1958.3,1958.2,1.02183]
[1742553164072,0.0076599,1958.3,1958.2,1.02183]
[1742553164677,1.3656599,1958.3,1958.2,1.02183]
[1742553164883,2.3874399,1958.3,1958.2,1.02183]
[1742553165082,1.02183,1958.2,1958.1,2.32115]
[1742553165275,1.358,1958.2,1958.1,2.32115]
[1742553165481,0.0076599,1958.3,1958.2,1.02183]
[1742553165684,0.0076599,1958.3,1958.2,2.32113]
[1742553165981,1.3656599,1958.3,1958.2,2.32113]
[1742553166381,0.0076599,1958.3,1958.2,2.32113]
[1742553166684,0.0076599,1958.3,1958.2,5.74113]
[1742553166883,0.0076599,1958.3,1958.2,1.02183]
[1742553167977,2.3488399,1958.3,1958.2,1.02183]
[1742553168487,1.3270599,1958.3,1958.2,1.02183]
[1742553168790,1.3270599,1958.3,1958.2,2.37583]
[1742553169482,0.0076599,1958.3,1958.2,2.37583]
[1742553170383,3.8838,1958.8,1958.2,10.4818]
[1742553170690,2.35492,1958.8,1958.7,1.02157]
[1742553171391,1.3334,1958.8,1958.7,1.02157]
[1742553171991,0.0076599,1958.9,1958.8,1.02152]
[1742553172491,2.3625299,1958.9,1958.8,1.02152]
[1742553172884,1.3410599,1958.9,1958.8,1.02152]
[1742553173480,0.0076599,1958.9,1958.8,1.02152]
[1742553173686,3.2078,1959.3,1959.2,1.02131]
[1742553173884,1.02122,1959.4,1959.3,1.02121]
[1742553174090,3.2078,1959.4,1959.1,0.6432]
[1742553174395,2.43068,1959.3,1959.2,1.02131]
[1742553174588,1.4094,1959.3,1959.2,1.02131]
[1742553175089,2.43066,1959.3,1959.2,1.02131]
[1742553175388,1.4094,1959.3,1959.2,1.02131]
[1742553175792,1.02131,1959.2,1959.1,1.6721799]
[1742553176592,5.7685199,1959.4,1959.3,1.02126]
[1742553176593,0.0076599,1959.4,1959.3,1.02126]
[1742553177293,0.0076599,1959.4,1959.3,4.22906]
[1742553177492,0.0076599,1959.4,1959.3,4.89956]
[1742553178289,1.2994,1959.7,1959.6,1.0211]
[1742553178693,2.32045,1959.7,1959.6,1.0211]
[1742553179888,0.0076599,1959.8,1959.7,1.02105]
[1742553180594,0.0076599,1959.8,1959.7,4.43605]
[1742553180892,4.22847,1960.5,1960.4,1.02068]
[1742553181591,7.32695,1960.7,1960.5,1.02063]
[1742553181592,49.87371597,1960.6,1960.5,1.02063]
[1742553181988,3.2154599,1960.7,1960.6,1.02058]
[1742553182184,1.3044599,1960.7,1960.6,1.02058]
[1742553183099,0.0076599,1960.7,1960.6,1.02058]
[1742553183294,3.2154599,1960.7,1960.5,4.43759]
[1742553183595,0.0076599,1960.7,1960.6,1.02058]
[1742553183897,3.2154599,1960.7,1960.5,1.02059]
[1742553184094,1.02063,1960.5,1960.4,1.0282999]
[1742553184394,2.31741,1960.6,1960.5,1.02063]
[1742553184797,1.2968,1960.6,1960.5,1.02063]
[1742553184999,0.0076599,1960.7,1960.6,1.02058]
[1742553185198,0.0076599,1960.7,1960.6,4.43958]
[1742553187196,1.0281899,1960.7,1960.6,1.02058]
[1742553187399,1.02063,1960.5,1960.4,1.0282999]
[1742553187599,1.02061,1960.6,1960.5,1.0206]
[1742553187796,2.38761,1960.6,1960.5,1.0206]
[1742553188287,1.02063,1960.5,1960.4,2.4464999]
[1742553188493,2.30523,1960.5,1960.4,0.0076599]
[1742553188693,5.51303,1960.5,1960.4,1.0283399]
[1742553188894,2.30523,1960.5,1960.4,1.0283399]
[1742553189094,1.2846,1960.5,1960.4,1.0283399]
[1742553190599,2.30523,1960.5,1960.4,0.0076599]
[1742553190902,4.4924,1960.5,1960.4,1.0283399]
[1742553191299,5.51303,1960.5,1960.4,1.0283399]
[1742553191601,4.4924,1960.5,1960.4,1.0283399]
[1742553192402,3.2154599,1960.7,1960.6,1.02058]
[1742553192703,0.0076599,1960.7,1960.6,4.43458]
[1742553193502,1.0281899,1960.7,1960.6,1.02058]
[1742553193703,1.02058,1960.6,1960.5,2.43448]
[1742553193908,5.63038,1960.6,1960.5,1.02058]
[1742553194599,1.02063,1960.5,1960.4,1.0283099]
[1742553194797,2.42113,1960.5,1960.4,1.0283099]
[1742553195195,2.42113,1960.5,1960.4,0.0076599]
[1742553195801,1.4005,1960.5,1960.4,1.0283399]
[1742553196200,1.4005,1960.5,1960.4,2.4308399]
[1742553196809,1.7361999,1960.7,1960.6,1.02058]
[1742553197004,3.1344999,1960.7,1960.6,1.02058]
[1742553197208,1.02063,1960.5,1960.4,1.0282999]
[1742553197702,1.02063,1960.5,1960.4,0.0076599]
[1742553197905,2.41893,1960.5,1960.4,0.0076599]
[1742553199102,9.00165,1960.5,1960.0,4.43384]
[1742553199312,1.02089,1960.1,1960.0,4.43384]
[1742553199508,1.02089,1960.1,1960.0,1.02084]
[1742553199703,1.3983,1960.1,1960.0,1.02084]
[1742553200304,4.22853,1960.4,1960.3,1.02074]
[1742553200506,1.02079,1960.2,1960.1,2.4391]
[1742553201509,1.02084,1960.1,1960.0,4.43586]
[1742553201714,2.42944,1960.1,1960.0,3.415]
[1742553201905,1.02089,1960.0,1959.9,1.0286099]
[1742553202209,2.42949,1960.0,1959.9,1.0286099]
[1742553202411,2.42949,1960.0,1959.9,2.4469099]
[1742553202812,1.4086,1960.0,1959.9,2.4469099]
[1742553203312,4.22862,1960.2,1960.1,1.02084]
[1742553203513,1.3803,1960.2,1960.1,1.02084]
[1742553203910,3.2078,1960.4,1960.3,1.02074]
[1742553204204,5.60881,1960.4,1960.3,1.02074]
[1742553204406,4.5881,1960.4,1960.3,1.02074]
[1742553205809,5.60878,1960.4,1960.3,1.02074]
[1742553206410,4.5881,1960.4,1960.0,4.1096]
[1742553206613,4.5881,1960.4,1960.0,6.50595]
[1742553206614,1.02084,1960.1,1960.0,6.50595]
[1742553206805,1.02082,1960.2,1960.1,1.02082]
[1742553207005,1.02082,1960.2,1960.0,5.4851]
[1742553207006,1.02084,1960.1,1960.0,5.4851]
[1742553207210,1.3461,1960.1,1960.0,6.50594]
[1742553207413,1.02077,1960.3,1960.2,1.02079]
[1742553207715,2.36687,1960.3,1960.2,1.02079]
[1742553208208,1.02079,1960.2,1960.1,1.67881]
[1742553208506,2.36689,1960.2,1960.1,1.02081]
[1742553209212,2.36689,1960.2,1960.0,5.4851]
[1742553209213,1.02084,1960.1,1960.0,2.39634]
[1742553209413,2.37344,1960.1,1960.0,2.39634]
[1742553209817,1.3526,1960.1,1960.0,2.39634]
[1742553211505,2.37344,1960.1,1960.0,2.39634]
[1742553211707,1.02089,1960.0,1959.9,1.0285599]
[1742553212014,2.37349,1960.0,1959.9,2.3815599]
[1742553212611,1.3526,1960.0,1959.9,2.3815599]
[1742553212813,4.43478,1960.3,1960.2,1.02079]
[1742553213008,1.3972,1960.3,1960.2,1.02079]
[1742553213316,2.41794,1960.3,1960.2,1.02079]
[1742553213514,1.3972,1960.3,1960.2,1.02079]
[1742553214010,1.3972,1960.3,1960.2,2.34409]
[1742553214208,2.41794,1960.3,1960.2,1.69209]
[1742553214415,1.02079,1960.2,1960.1,2.33281]
[1742553214614,7.15705,1960.2,1959.9,1.6998399]
[1742553214805,1.02089,1960.1,1960.0,1.02087]
[1742553215115,5.62583,1960.2,1960.1,1.02084]
[1742553215307,2.41803,1960.2,1960.1,1.02084]
[1742553215508,2.41805,1960.2,1960.1,1.02084]
[1742553215709,1.02088,1960.1,1960.0,1.02085]
[1742553215905,2.36754,1960.1,1960.0,2.33975]
[1742553216813,2.36754,1960.1,1959.9,0.0076599]
[1742553216814,1.02089,1960.0,1959.9,0.0076599]
[1742553217012,1.02089,1960.0,1959.9,1.0286099]
[1742553217013,3.72229,1960.0,1959.9,1.0286099]
[1742553218117,6.93009,1960.0,1959.9,0.0076599]
[1742553219921,6.93009,1960.0,1959.9,1.0286099]
[1742553220219,4.5545,1960.0,1959.9,1.0286099]
[1742553220420,5.57539,1960.0,1959.9,1.0286099]
[1742553220618,5.57539,1960.0,1959.9,0.0076599]
[1742553220813,5.57539,1960.0,1959.9,1.4295599]
[1742553221417,5.57539,1960.0,1959.9,0.0076599]
[1742553222727,1.02115,1959.5,1959.4,0.6624]
[1742553223022,2.55304,1959.4,1959.1,1.02135]
[1742553223231,1.02136,1959.2,1959.1,1.02135]
[1742553223721,1.02136,1959.1,1959.0,0.6419]
[1742553224029,1.02136,1959.1,1959.0,0.6495599]
[1742553224227,4.22916,1959.1,1959.0,0.0076599]
[1742553224425,1.02136,1959.1,1959.0,2.4066499]
[1742553224729,1.02136,1959.1,1959.0,1.3852599]
[1742553225032,4.22916,1959.1,1959.0,1.3852599]
[1742553225321,4.22916,1959.1,1959.0,0.0076599]
[1742553225520,4.91166,1959.1,1959.0,0.0076599]
[1742553225721,8.33466,1959.1,1959.0,0.0076599]
[1742553226119,3.423,1959.1,1959.0,1.0290699]
[1742553226527,2.40825,1959.2,1959.1,1.02136]
[1742553226730,2.40825,1959.2,1959.1,2.39896]
[1742553227529,2.40825,1959.2,1959.1,1.3776]
[1742553227828,1.3869,1959.2,1959.1,2.39896]
[1742553228020,3.2154599,1959.3,1959.1,1.3776]
[1742553228216,3.2154599,1959.3,1959.2,1.3557]
[1742553228422,3.2154599,1959.3,1959.2,2.37701]
[1742553228624,0.0076599,1959.3,1959.2,2.37701]
[1742553229427,6.6298,1959.6,1959.5,1.02115]
[1742553229634,3.2078,1959.6,1959.5,1.02115]
[1742553230228,4.2289,1959.6,1959.5,1.02115]
[1742553231130,3.2078,1959.6,1959.4,1.3557]
[1742553231524,4.22894,1959.6,1959.5,1.02115]
[1742553231832,3.2078,1959.6,1959.5,1.02115]
[1742553232222,3.2078,1959.6,1959.5,1.72055]
[1742553232631,0.0076599,1959.7,1959.6,1.0211]
[1742553232834,0.0076599,1959.7,1959.6,2.4315]
[1742553233424,1.0287099,1959.7,1959.6,2.4315]
[1742553233829,0.0076599,1959.7,1959.6,2.4315]
[1742553234331,1.0287099,1959.7,1959.6,2.4315]
[1742553237830,1.02121,1959.4,1959.3,1.71973]
[1742553238025,1.02121,1959.4,1959.3,0.6985]
[1742553238225,1.02126,1959.3,1959.2,0.6956]
[1742553238636,1.02136,1959.1,1959.0,1.7141299]